fUSD/lending_fUSD_20250521
["ID","MTS","AMOUNT","RATE_DAILY","PERIOD"]
[361794086,1747804246900,-430.0,0.00035114,2]
[361794089,1747804246913,-1133.92242123,0.00035118,2]
[361794091,1747804246925,-430.0,0.00035141,2]
[361794093,1747804246937,-430.0,0.00035168,2]
[361794096,1747804246950,-430.0,0.00035196,2]
[361794098,1747804246963,-430.0,0.00035223,2]
[361794100,1747804246977,-200.0,0.00035232,10]
[361794101,1747804246991,-2035.51134365,0.00035242,2]
[361794102,1747804247004,-274.96674656,0.0003525,2]
[361794103,1747804247017,-430.0,0.00035251,2]
[361794104,1747804247029,-151.0,0.00035252,7]
[361794105,1747804247042,-576.783657,0.00035252,7]
[361794106,1747804247054,-576.783657,0.00035252,7]
[361794107,1747804247068,-298.90582,0.00035252,7]
[361794108,1747804247081,-298.90582,0.00035252,7]
[361794109,1747804247095,-248.205868,0.00035252,7]
[361794110,1747804247107,-248.205868,0.00035252,7]
[361794111,1747804247120,-1133.92242123,0.00035252,2]
[361794112,1747804247134,-22504.8303017,0.0003526,2]
[361794113,1747804247146,-151.0,0.0003527,7]
[361794114,1747804247159,-151.0,0.0003527,7]
[361794115,1747804247172,-151.0,0.0003527,7]
[361794116,1747804247185,-182.197787,0.0003527,7]
[361794117,1747804247197,-182.197787,0.0003527,7]
[361794118,1747804247210,-151.0,0.0003527,7]
[361794119,1747804247223,-151.0,0.0003527,7]
[361794120,1747804247236,-430.0,0.00035278,2]
[361794121,1747804247249,-224.4049749,0.000353,8]
[361794122,1747804247262,-430.0,0.00035305,2]
[361794123,1747804247275,-180.589711,0.00035307,7]
[361794124,1747804247290,-151.0,0.00035307,7]
[361794125,1747804247303,-430.0,0.00035333,2]
[361794126,1747804247317,-150.84,0.00035342,2]
[361794127,1747804247331,-445.0,0.0003536,2]
[361794128,1747804247343,-225.908622,0.00035361,7]
[361794129,1747804247357,-225.908622,0.00035361,7]
[361794130,1747804247371,-151.0,0.0003537,7]
[361794131,1747804247387,-151.0,0.0003537,7]
[361794132,1747804247400,-1133.92242123,0.00035387,2]
[361794133,1747804247413,-1346.28,0.000354,8]
[361794134,1747804247426,-319.340175,0.00035468,7]
[361794135,1747804247439,-319.340183,0.00035468,7]
[361794136,1747804247452,-280.855979,0.00035468,7]
[361794137,1747804247465,-280.85597,0.00035468,7]
[361794138,1747804247478,-2035.51134365,0.00035468,2]
[361794139,1747804247491,-1920.72665896,0.00035477,2]
[361794140,1747804247504,-151.0,0.00035478,7]
[361794141,1747804247517,-151.0,0.00035478,7]
[361794142,1747804247529,-151.0,0.00035478,7]
[361794143,1747804247542,-494.726676,0.00035478,7]
[361794144,1747804247555,-182.197787,0.00035478,7]
[361794145,1747804247567,-182.197787,0.00035478,7]
[361794146,1747804247580,-151.0,0.00035478,7]
[361794147,1747804247592,-237.234454,0.00035478,7]
[361794148,1747804247605,-576.783657,0.00035478,7]
[361794149,1747804247617,-576.783657,0.00035478,7]
[361794150,1747804247630,-250.39648,0.00035478,7]
[361794151,1747804247644,-298.90582,0.00035478,7]
[361794152,1747804247656,-298.90582,0.00035478,7]
[361794153,1747804247669,-248.205868,0.00035478,7]
[361794154,1747804247684,-248.205868,0.00035478,7]
[361794155,1747804247697,-205.953069,0.00035488,7]
[361794156,1747804247710,-151.0,0.0003549,7]
[361794157,1747804247722,-151.0,0.0003549,7]
[361794158,1747804247735,-225.908622,0.0003549,7]
[361794159,1747804247751,-225.908622,0.0003549,7]
[361794160,1747804247767,-2035.51134365,0.0003549,2]
[361794161,1747804247779,-300.0,0.000355,2]
[361794162,1747804247793,-4800.0,0.000355,2]
[361794163,1747804247809,-4070.16,0.000355,2]
[361794164,1747804247822,-4070.16,0.000355,2]
[361794165,1747804247835,-200.64789814,0.000355,30]
[361794166,1747804247847,-22504.8303017,0.00035505,2]
[361794167,1747804247860,-4071.0226873,0.00035506,2]
[361794168,1747804247873,-90019.3212068,0.00035512,2]
[361794169,1747804247886,-16284.0907492,0.00035512,2]
[361794170,1747804247900,-225.908622,0.00035515,7]
[361794171,1747804247913,-225.908622,0.00035515,7]
[361794172,1747804247926,-151.0,0.00035515,7]
[361794173,1747804247940,-151.0,0.00035515,7]
[361794174,1747804247952,-494.726676,0.00035515,7]
[361794175,1747804247966,-182.197787,0.00035515,7]
[361794176,1747804247979,-182.197795,0.00035515,7]
[361794177,1747804247992,-151.0,0.00035515,7]
[361794178,1747804248004,-16028.74454439,0.00035516,2]
[361794179,1747804248017,-168.49479375,0.00035516,2]
[361794180,1747804248029,-31336.00511062,0.00035516,2]
[361794181,1747804248042,-377.19124979,0.00035516,2]
[361794182,1747804248055,-232.07970874,0.00035516,7]
[361794183,1747804248069,-2035.51134365,0.00035516,2]
[361794184,1747804248082,-1133.92242123,0.00035521,2]
[361794185,1747804248095,-155222.0855152,0.00035522,2]
[361794186,1747804248107,-4975.8702484,0.00035522,2]
[361794187,1747804248120,-3721.2118535,0.00035522,2]
[361794188,1747804248132,-4770.8060486,0.00035522,2]
[361794189,1747804248145,-33084.4891543,0.00035522,2]
[361794190,1747804248158,-760.6124301,0.00035522,2]
[361794191,1747804248170,-338.7206231,0.00035522,2]
[361794192,1747804248183,-151.0,0.00035525,7]
[361794193,1747804248197,-151.0,0.00035525,7]
[361794194,1747804248210,-576.783657,0.00035526,7]
[361794195,1747804248223,-576.783657,0.00035526,7]
[361794196,1747804248236,-298.90582,0.00035526,7]
[361794197,1747804248249,-298.90582,0.00035526,7]
[361794198,1747804248262,-248.205868,0.00035526,7]
[361794199,1747804248275,-248.205868,0.00035526,7]
[361794200,1747804248288,-305.6,0.00035546,2]
[361794201,1747804248301,-500.0,0.00035562,7]
[361794202,1747804248314,-22504.8303017,0.00035575,2]
[361794203,1747804248326,-225.908622,0.00035576,7]
[361794204,1747804248339,-225.908617,0.00035576,7]
[361794205,1747804248351,-151.0,0.00035576,7]
[361794206,1747804248363,-151.0,0.00035576,7]
[361794207,1747804248378,-494.726685,0.00035576,7]
[361794208,1747804248390,-576.783657,0.00035576,7]
[361794209,1747804248402,-576.783654,0.00035576,7]
[361794210,1747804248414,-298.90582,0.00035576,7]
[361794211,1747804248428,-298.905817,0.00035576,7]
[361794212,1747804248440,-248.205868,0.00035576,7]
[361794213,1747804248452,-248.205872,0.00035576,7]
[361794214,1747804248465,-1920.72665896,0.00035581,2]
[361794215,1747804248478,-45009.6606034,0.00035582,2]
[361794216,1747804248491,-151.0,0.00035585,7]
[361794217,1747804248503,-151.0,0.00035585,7]
[361794218,1747804248516,-150.0,0.00035585,2]
[361794219,1747804248529,-126047.1795354,0.00035592,2]
[361794220,1747804248542,-96872.2735556,0.00035592,2]
[361794221,1747804248554,-67697.3675758,0.00035592,2]
[361794222,1747804248567,-4040.6261034,0.00035592,2]
[361794223,1747804248579,-3105.3819583,0.00035592,2]
[361794224,1747804248592,-2170.1378132,0.00035592,2]
[361794225,1747804248605,-3021.7881497,0.00035592,2]
[361794226,1747804248618,-2322.364446,0.00035592,2]
[361794227,1747804248631,-1622.9407422,0.00035592,2]
[361794228,1747804248644,-3874.8562654,0.00035592,2]
[361794229,1747804248657,-2978.9064823,0.00035592,2]
[361794230,1747804248669,-2082.9566992,0.00035592,2]
[361794231,1747804248683,-26871.2747455,0.00035592,2]
[361794232,1747804248697,-20658.0603367,0.00035592,2]
[361794233,1747804248710,-14444.8459278,0.00035592,2]
[361794234,1747804248724,-760.6124301,0.00035592,2]
[361794235,1747804248738,-760.6124301,0.00035592,2]
[361794236,1747804248752,-760.6124301,0.00035592,2]
[361794237,1747804248767,-338.7206231,0.00035592,2]
[361794238,1747804248781,-338.7206231,0.00035592,2]
[361794239,1747804248795,-338.7206231,0.00035592,2]
[361794240,1747804248808,-700.0,0.00035605,120]
[361794241,1747804248821,-700.0,0.00035605,120]
[361794242,1747804248835,-700.0,0.00035605,120]
[361794243,1747804248849,-700.0,0.00035605,120]
[361794244,1747804248862,-700.0,0.00035605,120]
[361794245,1747804248875,-700.0,0.00035605,120]
[361794246,1747804248888,-700.0,0.00035605,120]
[361794247,1747804248901,-412.95626254,0.00035605,120]
[361794248,1747804248915,-3268.634195,0.00035605,2]
[361794249,1747804248929,-274.96674656,0.00035606,2]
[361794250,1747804248942,-3336.89573279,0.00035606,2]
[361794251,1747804248955,-420.0,0.00035616,5]
[361794252,1747804248968,-168.102172,0.00035616,5]
[361794253,1747804248981,-400.0,0.00035616,60]
[361794254,1747804248993,-420.0,0.00035616,5]
[361794255,1747804249007,-420.0,0.00035616,5]
[361794256,1747804249019,-420.0,0.00035616,5]
[361794257,1747804249033,-420.0,0.00035616,5]
[361794258,1747804249046,-420.0,0.00035616,5]
[361794259,1747804249060,-420.0,0.00035616,5]
[361794260,1747804249073,-420.0,0.00035616,5]
[361794261,1747804249086,-420.0,0.00035616,5]
[361794262,1747804249100,-420.0,0.00035616,5]
[361794263,1747804249113,-420.0,0.00035616,5]
[361794264,1747804249127,-420.0,0.00035616,5]
[361794265,1747804250203,-420.0,0.00035616,5]
[361794266,1747804250246,-420.0,0.00035616,5]
[361794267,1747804250270,-420.0,0.00035616,5]
[361794268,1747804250313,-420.0,0.00035616,5]
[361794269,1747804250345,-420.0,0.00035616,5]
[361794270,1747804250370,-420.0,0.00035616,5]
[361794271,1747804250380,-277.40630344,0.00035616,5]
[361794272,1747804250397,-420.0,0.00035616,5]
[361794273,1747804250407,-420.0,0.00035616,5]
[361794274,1747804250418,-420.0,0.00035616,5]
[361794275,1747804250428,-420.0,0.00035616,5]
[361794276,1747804250438,-420.0,0.00035616,5]
[361794277,1747804250449,-420.0,0.00035616,5]
[361794278,1747804250460,-420.0,0.00035616,5]
[361794279,1747804250471,-420.0,0.00035616,5]
[361794280,1747804250481,-420.0,0.00035616,5]
[361794281,1747804250492,-420.0,0.00035616,5]
[361794282,1747804250502,-420.0,0.00035616,5]
[361794283,1747804250513,-420.0,0.00035616,5]
[361794284,1747804250523,-420.0,0.00035616,5]
[361794285,1747804250534,-420.0,0.00035616,5]
[361794286,1747804250545,-420.0,0.00035616,5]
[361794287,1747804250554,-420.0,0.00035616,5]
[361794288,1747804250564,-420.0,0.00035616,5]
[361794289,1747804250575,-420.0,0.00035616,5]
[361794290,1747804250585,-420.0,0.00035616,5]
[361794291,1747804250596,-282.66930817,0.00035616,5]
[361794292,1747804250607,-420.0,0.00035616,5]
[361794293,1747804250618,-420.0,0.00035616,5]
[361794294,1747804250628,-420.0,0.00035616,5]
[361794295,1747804250639,-431.29629799,0.00035616,5]
[361794296,1747804250650,-420.0,0.00035616,5]
[361794297,1747804250660,-340.8938408,0.00035616,5]
[361794298,1747804250671,-420.0,0.00035616,5]
[361794299,1747804250682,-420.0,0.00035616,5]
[361794300,1747804250692,-420.0,0.00035616,5]
[361794301,1747804250703,-420.0,0.00035616,5]
[361794302,1747804250714,-420.0,0.00035616,5]
[361794303,1747804250725,-323.61873155,0.00035616,5]
[361794304,1747804250737,-420.0,0.00035616,5]
[361794305,1747804250750,-400.69583114,0.00035616,5]
[361794306,1747804250762,-420.0,0.00035616,5]
[361794307,1747804250774,-420.0,0.00035616,5]
[361794308,1747804250784,-420.0,0.00035616,5]
[361794309,1747804250795,-420.0,0.00035616,5]
[361794310,1747804250805,-420.0,0.00035616,5]
[361794311,1747804250816,-420.0,0.00035616,5]
[361794312,1747804250834,-365.18093238,0.00035616,5]
[361794313,1747804250845,-402.31694348,0.00035616,5]
[361794314,1747804250856,-420.0,0.00035616,5]
[361794315,1747804250867,-298.67830662,0.00035616,5]
[361794316,1747804250878,-420.0,0.00035616,5]
[361794317,1747804250889,-167.1570404,0.00035616,5]
[361794318,1747804250899,-420.0,0.00035616,5]
[361794319,1747804250911,-420.0,0.00035616,5]
[361794320,1747804250923,-420.0,0.00035616,5]
[361794321,1747804250936,-420.0,0.00035616,5]
[361794322,1747804250947,-420.0,0.00035616,5]
[361794323,1747804250958,-420.0,0.00035616,5]
[361794324,1747804250969,-473.82863857,0.00035616,5]
[361794325,1747804250980,-420.0,0.00035616,5]
[361794326,1747804250991,-420.0,0.00035616,5]
[361794327,1747804251002,-420.0,0.00035616,5]
[361794328,1747804251013,-420.0,0.00035616,5]
[361794329,1747804251025,-420.0,0.00035616,5]
[361794330,1747804251035,-400.6492932,0.00035616,5]
[361794331,1747804251047,-420.0,0.00035616,5]
[361794332,1747804251058,-420.0,0.00035616,5]
[361794333,1747804251068,-420.0,0.00035616,5]
[361794334,1747804251080,-420.0,0.00035616,5]
[361794335,1747804251091,-420.0,0.00035616,5]
[361794336,1747804251101,-535.25448862,0.00035616,5]
[361794337,1747804251112,-420.0,0.00035616,5]
[361794338,1747804251123,-404.46250388,0.00035616,5]
[361794339,1747804251134,-452.43184355,0.00035616,5]
[361794340,1747804251145,-450.91593177,0.00035616,2]
[361794341,1747804251156,-420.0,0.00035616,5]
[361794342,1747804251167,-488.24369491,0.00035616,5]
[361794343,1747804251178,-420.0,0.00035616,5]
[361794344,1747804251190,-400.17201026,0.00035616,2]
[361794345,1747804251201,-420.0,0.00035616,5]
[361794346,1747804251211,-420.0,0.00035616,5]
[361794347,1747804251222,-420.0,0.00035616,5]
[361794348,1747804251232,-400.90938284,0.00035616,5]
[361794349,1747804251242,-420.0,0.00035616,5]
[361794350,1747804251258,-1481.83,0.00035616,5]
[361794351,1747804251269,-288.33847474,0.00035616,5]
[361794352,1747804251280,-281.07881833,0.00035616,5]
[361794353,1747804251291,-420.0,0.00035616,5]
[361794354,1747804251302,-420.0,0.00035616,5]
[361794355,1747804251313,-324.68438947,0.00035616,5]
[361794356,1747804251325,-420.0,0.00035616,5]
[361794357,1747804251335,-466.64462588,0.00035616,5]
[361794358,1747804251347,-420.0,0.00035616,5]
[361794359,1747804251358,-420.0,0.00035616,2]
[361794360,1747804251368,-689.93,0.00035616,5]
[361794361,1747804251380,-420.0,0.00035616,5]
[361794362,1747804251391,-692.25,0.00035616,5]
[361794363,1747804251402,-420.0,0.00035616,5]
[361794364,1747804251412,-420.0,0.00035616,5]
[361794365,1747804251423,-611.69,0.00035616,5]
[361794366,1747804251434,-453.54,0.00035616,5]
[361794367,1747804251444,-420.0,0.00035616,5]
[361794368,1747804251455,-420.0,0.00035616,5]
[361794369,1747804251466,-1000.0,0.00035616,30]
[361794370,1747804251478,-423.97,0.00035616,5]
[361794371,1747804251490,-435.34,0.00035616,5]
[361794372,1747804251501,-420.0,0.00035616,5]
[361794373,1747804251512,-995.75,0.00035616,5]
[361794374,1747804251523,-420.0,0.00035616,5]
[361794375,1747804251533,-1096.4,0.00035616,5]
[361794376,1747804251544,-420.0,0.00035616,5]
[361794377,1747804251554,-494.90743541,0.00035616,5]
[361794378,1747804251565,-420.0,0.00035616,5]
[361794379,1747804251575,-420.0,0.00035616,5]
[361794380,1747804251587,-420.0,0.00035616,5]
[361794381,1747804251597,-1471.26,0.00035616,5]
[361794382,1747804251608,-420.0,0.00035616,5]
[361794383,1747804251620,-420.0,0.00035616,5]
[361794384,1747804251631,-664.62,0.00035616,5]
[361794385,1747804251642,-619.26,0.00035616,5]
[361794386,1747804251653,-420.0,0.00035616,5]
[361794387,1747804251664,-420.0,0.00035616,5]
[361794388,1747804251674,-499.63,0.00035616,5]
[361794389,1747804251700,-369.8546259,0.00035616,7]
[361794390,1747804251712,-420.0,0.00035616,5]
[361794391,1747804251723,-420.0,0.00035616,5]
[361794392,1747804251734,-420.0,0.00035616,5]
[361794393,1747804251747,-420.0,0.00035616,5]
[361794394,1747804251760,-426.73582783,0.00035616,5]
[361794395,1747804251770,-568.21,0.00035616,5]
[361794396,1747804251782,-420.0,0.00035616,5]
[361794397,1747804251795,-420.0,0.00035616,5]
[361794398,1747804251806,-420.0,0.00035616,5]
[361794399,1747804251817,-1470.59,0.00035616,5]
[361794400,1747804251829,-420.0,0.00035616,5]
[361794401,1747804251840,-420.0,0.00035616,5]
[361794402,1747804251852,-472.17629246,0.00035616,5]
[361794403,1747804251864,-420.0,0.00035616,5]
[361794404,1747804251875,-420.0,0.00035616,5]
[361794405,1747804251887,-420.0,0.00035616,5]
[361794406,1747804251898,-420.0,0.00035616,5]
[361794407,1747804251911,-422.49,0.00035616,5]
[361794408,1747804251923,-420.0,0.00035616,5]
[361794409,1747804251935,-420.0,0.00035616,5]
[361794410,1747804251948,-1674.54,0.00035616,5]
[361794411,1747804251958,-925.5,0.00035616,5]
[361794412,1747804251969,-420.0,0.00035616,5]
[361794413,1747804251980,-420.0,0.00035616,5]
[361794414,1747804251991,-420.0,0.00035616,5]
[361794415,1747804252002,-420.0,0.00035616,5]
[361794416,1747804252013,-420.0,0.00035616,5]
[361794417,1747804252023,-420.0,0.00035616,5]
[361794418,1747804252035,-420.0,0.00035616,5]
[361794419,1747804252046,-420.0,0.00035616,5]
[361794420,1747804252057,-420.0,0.00035616,5]
[361794421,1747804252068,-470.37,0.00035616,5]
[361794422,1747804252079,-408.86602236,0.00035616,5]
[361794423,1747804252089,-523.41,0.00035616,5]
[361794424,1747804252106,-409.45697887,0.00035616,5]
[361794425,1747804252118,-420.0,0.00035616,5]
[361794426,1747804252129,-420.0,0.00035616,5]
[361794427,1747804252140,-420.0,0.00035616,5]
[361794428,1747804252151,-420.0,0.00035616,5]
[361794429,1747804252163,-420.0,0.00035616,5]
[361794430,1747804252174,-420.0,0.00035616,5]
[361794431,1747804252185,-420.0,0.00035616,5]
[361794432,1747804252197,-846.64,0.00035616,5]
[361794433,1747804252208,-420.0,0.00035616,5]
[361794434,1747804252220,-420.0,0.00035616,5]
[361794435,1747804252232,-493.53,0.00035616,5]
[361794436,1747804252242,-1143.06,0.00035616,5]
[361794437,1747804252254,-1588.02,0.00035616,5]
[361794438,1747804252265,-421.68,0.00035616,5]
[361794439,1747804252276,-420.0,0.00035616,5]
[361794440,1747804252287,-420.0,0.00035616,5]
[361794441,1747804252299,-420.0,0.00035616,5]
[361794442,1747804252310,-420.0,0.00035616,5]
[361794443,1747804252323,-420.0,0.00035616,5]
[361794444,1747804252334,-420.0,0.00035616,5]
[361794445,1747804252345,-420.0,0.00035616,5]
[361794446,1747804252356,-401.56825708,0.00035616,5]
[361794447,1747804252367,-695.79,0.00035616,5]
[361794448,1747804252378,-934.86,0.00035616,5]
[361794449,1747804252388,-420.0,0.00035616,5]
[361794450,1747804252399,-420.0,0.00035616,5]
[361794451,1747804252410,-1984.98,0.00035616,5]
[361794452,1747804252422,-420.0,0.00035616,5]
[361794453,1747804252432,-1066.98,0.00035616,5]
[361794454,1747804252444,-420.0,0.00035616,5]
[361794455,1747804252455,-661.02,0.00035616,5]
[361794456,1747804252465,-420.0,0.00035616,5]
[361794457,1747804252475,-2265.0,0.00035616,5]
[361794458,1747804252487,-420.0,0.00035616,5]
[361794459,1747804252498,-420.0,0.00035616,5]
[361794460,1747804252509,-420.0,0.00035616,5]
[361794461,1747804252520,-736.65,0.00035616,5]
[361794462,1747804252531,-420.0,0.00035616,5]
[361794463,1747804252542,-542.96,0.00035616,5]
[361794464,1747804252554,-1012.31,0.00035616,5]
[361794465,1747804252565,-768.77,0.00035616,5]
[361794466,1747804252576,-846.32,0.00035616,5]
[361794467,1747804252587,-645.91,0.00035616,5]
[361794468,1747804252598,-420.0,0.00035616,5]
[361794469,1747804252609,-420.0,0.00035616,5]
[361794470,1747804252621,-448.5,0.00035616,5]
[361794471,1747804252632,-420.0,0.00035616,5]
[361794472,1747804252645,-420.0,0.00035616,5]
[361794473,1747804252656,-420.0,0.00035616,5]
[361794474,1747804252667,-1535.96,0.00035616,5]
[361794475,1747804252678,-1603.53,0.00035616,5]
[361794476,1747804252688,-420.0,0.00035616,5]
[361794477,1747804252700,-420.0,0.00035616,5]
[361794478,1747804252711,-420.0,0.00035616,5]
[361794479,1747804252723,-420.0,0.00035616,5]
[361794480,1747804252733,-420.0,0.00035616,5]
[361794481,1747804252745,-1385.15,0.00035616,5]
[361794482,1747804252759,-420.0,0.00035616,3]
[361794483,1747804252770,-420.2,0.00035616,5]
[361794484,1747804252781,-674.6,0.00035616,5]
[361794485,1747804252792,-831.47,0.00035616,5]
[361794486,1747804252803,-420.0,0.00035616,5]
[361794487,1747804252813,-420.0,0.00035616,5]
[361794488,1747804252827,-420.0,0.00035616,5]
[361794489,1747804252838,-496.75,0.00035616,5]
[361794490,1747804252848,-420.0,0.00035616,5]
[361794491,1747804252858,-670.29,0.00035616,5]
[361794492,1747804252869,-210.40691214,0.00035616,5]
[361794493,1747804252880,-420.0,0.00035616,5]
[361794494,1747804252890,-420.0,0.00035616,5]
[361794495,1747804252901,-600.26,0.00035616,5]
[361794496,1747804252911,-420.0,0.00035616,5]
[361794497,1747804252922,-420.0,0.00035616,5]
[361794498,1747804252932,-1334.27,0.00035616,5]
[361794499,1747804252944,-420.0,0.00035616,5]
[361794500,1747804252955,-278.10735886,0.00035616,5]
[361794501,1747804252966,-496.17,0.00035616,5]
[361794502,1747804252977,-791.45,0.00035616,5]
[361794503,1747804252987,-420.0,0.00035616,5]
[361794504,1747804252997,-686.27,0.00035616,5]
[361794505,1747804253008,-420.0,0.00035616,5]
[361794506,1747804253211,-420.0,0.00035616,5]
[361794507,1747804253222,-688.27,0.00035616,5]
[361794508,1747804253232,-420.0,0.00035616,5]
[361794509,1747804253242,-1003.01,0.00035616,5]
[361794510,1747804253252,-420.0,0.00035616,5]
[361794511,1747804253262,-420.0,0.00035616,2]
[361794512,1747804253274,-420.0,0.00035616,5]
[361794513,1747804253284,-1124.62,0.00035616,5]
[361794514,1747804253295,-420.0,0.00035616,5]
[361794515,1747804253305,-2716.17,0.00035616,5]
[361794516,1747804253315,-657.56,0.00035616,5]
[361794517,1747804253325,-420.0,0.00035616,5]
[361794518,1747804253334,-826.73,0.00035616,5]
[361794519,1747804253344,-420.0,0.00035616,5]
[361794520,1747804253354,-1950.34,0.00035616,5]
[361794521,1747804253364,-1466.2,0.00035616,5]
[361794522,1747804253374,-420.0,0.00035616,5]
[361794523,1747804253384,-2631.47,0.00035616,5]
[361794524,1747804253395,-1160.45,0.00035616,5]
[361794525,1747804253405,-420.0,0.00035616,5]
[361794526,1747804253415,-757.6,0.00035616,5]
[361794527,1747804253425,-420.0,0.00035616,5]
[361794528,1747804253434,-420.0,0.00035616,5]
[361794529,1747804253443,-420.0,0.00035616,5]
[361794530,1747804253454,-420.0,0.00035616,5]
[361794531,1747804253464,-420.0,0.00035616,5]
[361794532,1747804253475,-420.0,0.00035616,5]
[361794533,1747804253485,-420.0,0.00035616,5]
[361794534,1747804253494,-400.0,0.00035616,5]
[361794535,1747804253504,-2078.87,0.00035616,5]
[361794536,1747804253515,-420.0,0.00035616,5]
[361794537,1747804253525,-420.0,0.00035616,5]
[361794538,1747804253534,-420.0,0.00035616,5]
[361794539,1747804253544,-420.0,0.00035616,5]
[361794540,1747804253554,-420.0,0.00035616,5]
[361794541,1747804253564,-420.0,0.00035616,5]
[361794542,1747804253574,-420.0,0.00035616,5]
[361794543,1747804253584,-420.0,0.00035616,5]
[361794544,1747804253594,-420.0,0.00035616,5]
[361794545,1747804253606,-840.01,0.00035616,5]
[361794546,1747804253616,-420.0,0.00035616,5]
[361794547,1747804253627,-420.0,0.00035616,5]
[361794548,1747804253637,-420.0,0.00035616,5]
[361794549,1747804253648,-855.61,0.00035616,5]
[361794550,1747804253658,-834.62,0.00035616,5]
[361794551,1747804253669,-420.0,0.00035616,5]
[361794552,1747804253679,-420.0,0.00035616,5]
[361794553,1747804253689,-864.66,0.00035616,5]
[361794554,1747804253699,-420.0,0.00035616,5]
[361794555,1747804253709,-442.88,0.00035616,5]
[361794556,1747804253719,-608.48,0.00035616,5]
[361794557,1747804253730,-420.0,0.00035616,5]
[361794558,1747804253741,-420.0,0.00035616,5]
[361794559,1747804253752,-420.0,0.00035616,5]
[361794560,1747804253762,-1885.5,0.00035616,5]
[361794561,1747804253772,-420.0,0.00035616,5]
[361794562,1747804253784,-568.4,0.00035616,5]
[361794563,1747804253796,-692.79,0.00035616,5]
[361794564,1747804253806,-420.0,0.00035616,5]
[361794565,1747804253815,-420.0,0.00035616,5]
[361794566,1747804253826,-460.11,0.00035616,5]
[361794567,1747804253835,-420.0,0.00035616,5]
[361794568,1747804253845,-471.22,0.00035616,5]
[361794569,1747804253855,-206.11776996,0.00035616,5]
[361794570,1747804253865,-305.64575434,0.00035616,5]
[361794571,1747804253874,-420.0,0.00035616,5]
[361794572,1747804253884,-420.0,0.00035616,5]
[361794573,1747804253895,-670.39,0.00035616,5]
[361794574,1747804253905,-1113.76,0.00035616,5]
[361794575,1747804253915,-610.22,0.00035616,5]
[361794576,1747804253925,-420.0,0.00035616,5]
[361794577,1747804253935,-420.0,0.00035616,5]
[361794578,1747804253945,-971.2,0.00035616,5]
[361794579,1747804253955,-420.0,0.00035616,5]
[361794580,1747804253964,-420.0,0.00035616,5]
[361794581,1747804253974,-420.0,0.00035616,5]
[361794582,1747804253984,-724.34,0.00035616,5]
[361794583,1747804253995,-755.45,0.00035616,5]
[361794584,1747804254005,-420.0,0.00035616,5]
[361794585,1747804254015,-645.94,0.00035616,5]
[361794586,1747804254025,-420.0,0.00035616,5]
[361794587,1747804254034,-500.0,0.00035616,2]
[361794588,1747804254043,-500.0,0.00035616,2]
[361794589,1747804254053,-500.0,0.00035616,2]
[361794590,1747804254063,-420.0,0.00035616,5]
[361794591,1747804254072,-631.60885041,0.00035616,2]
[361794592,1747804254082,-420.0,0.00035616,5]
[361794593,1747804254093,-420.0,0.00035616,5]